[Event "Live Chess"]
[Site "Chess.com"]
[Date "2023.09.16"]
[Round "-"]
[White "Ruanfelipe2014"]
[Black "VitorEMS"]
[Result "1-0"]
[WhiteElo "972"]
[BlackElo "724"]
[TimeControl "900+5"]
[EndTime "6:42:16 PDT"]
[Termination "Ruanfelipe2014 venceu por desistência"]

1. e4 {[%clk 0:15:02.4]} 1... e5 {[%clk 0:15:02.7]} 2. Nf3 {[%clk 0:15:03.7]}
2... Nf6 {[%clk 0:15:05.9]} 3. Nxe5 {[%clk 0:14:59.5]} 3... d6 {[%clk
0:15:07.1]} 4. Nf3 {[%clk 0:14:53.2]} 4... Nxe4 {[%clk 0:15:08.7]} 5. Qe2 {[%clk
0:14:54.1]} 5... d5 {[%clk 0:14:53]} 6. d3 {[%clk 0:14:54.3]} 6... Qe7 {[%clk
0:14:41.8]} 7. dxe4 {[%clk 0:14:53.7]} 7... dxe4 {[%clk 0:14:44.3]} 8. Nd4
{[%clk 0:14:52.8]} 8... Qe5 {[%clk 0:14:25.6]} 9. Nf3 {[%clk 0:14:48.1]} 9...
Qe6 {[%clk 0:14:23.9]} 10. Ng5 {[%clk 0:14:46.5]} 10... Qd6 {[%clk 0:14:25.1]}
11. Qxe4+ {[%clk 0:14:44.4]} 11... Be7 {[%clk 0:14:15.5]} 12. Bc4 {[%clk
0:14:33.1]} 12... Rf8 {[%clk 0:13:55]} 13. Nxh7 {[%clk 0:14:25.8]} 13... Rh8
{[%clk 0:13:55.2]} 14. Ng5 {[%clk 0:14:25.4]} 14... Rf8 {[%clk 0:13:56.9]} 15.
Bf4 {[%clk 0:14:01.6]} 15... Qb4+ {[%clk 0:13:50.5]} 16. c3 {[%clk 0:13:58.8]}
16... Qxb2 {[%clk 0:13:47.9]} 17. Bxf7+ {[%clk 0:13:38.6]} 17... Kd8 {[%clk
0:13:39.6]} 18. Ne6+ {[%clk 0:13:36.8]} 18... Kd7 {[%clk 0:13:40.5]} 19. Nxf8+
{[%clk 0:13:31.9]} 1-0

[Event "Live Chess"]
[Site "Chess.com"]
[Date "2023.09.16"]
[Round "-"]
[White "guilhermemazza"]
[Black "pedromiguelchess"]
[Result "0-1"]
[WhiteElo "493"]
[BlackElo "1099"]
[TimeControl "900+5"]
[EndTime "6:43:30 PDT"]
[Termination "pedromiguelchess venceu por xeque-mate"]

1. e4 {[%clk 0:15:02.6]} 1... c5 {[%clk 0:14:59.9]} 2. f4 {[%clk 0:15:04.6]}
2... d6 {[%clk 0:14:58.4]} 3. c3 {[%clk 0:15:08.5]} 3... Nc6 {[%clk 0:15:00.5]}
4. d3 {[%clk 0:15:11.7]} 4... e6 {[%clk 0:14:59]} 5. Nf3 {[%clk 0:15:15.5]} 5...
Nge7 {[%clk 0:14:58.5]} 6. Nbd2 {[%clk 0:15:18]} 6... d5 {[%clk 0:14:56.7]} 7.
exd5 {[%clk 0:15:20.8]} 7... exd5 {[%clk 0:14:58.6]} 8. Qe2 {[%clk 0:15:23.5]}
8... h6 {[%clk 0:14:02.2]} 9. g3 {[%clk 0:15:24.4]} 9... Be6 {[%clk 0:14:05.2]}
10. Ne5 {[%clk 0:15:19.8]} 10... d4 {[%clk 0:13:38.3]} 11. Nxc6 {[%clk
0:15:21.2]} 11... Nxc6 {[%clk 0:13:40.8]} 12. cxd4 {[%clk 0:15:22.5]} 12... Nxd4
{[%clk 0:13:42.5]} 13. Qe5 {[%clk 0:15:20.8]} 13... Qd6 {[%clk 0:13:29.5]} 14.
Qxd6 {[%clk 0:15:24.3]} 14... Bxd6 {[%clk 0:13:32.2]} 15. Bg2 {[%clk 0:15:15.4]}
15... Nc2+ {[%clk 0:13:33.9]} 16. Kd1 {[%clk 0:15:13]} 16... Nxa1 {[%clk
0:13:36.9]} 17. Bxb7 {[%clk 0:15:15.6]} 17... Rb8 {[%clk 0:13:32]} 18. Bc6+
{[%clk 0:15:17.4]} 18... Bd7 {[%clk 0:13:31]} 19. Bxd7+ {[%clk 0:15:21.3]} 19...
Kxd7 {[%clk 0:13:34.5]} 20. b3 {[%clk 0:15:19]} 20... a5 {[%clk 0:13:33.1]} 21.
Bb2 {[%clk 0:15:21.9]} 21... Nxb3 {[%clk 0:13:30.1]} 22. Nxb3 {[%clk 0:15:24.6]}
22... a4 {[%clk 0:13:26.9]} 23. Nxc5+ {[%clk 0:15:26.2]} 23... Bxc5 {[%clk
0:13:28.4]} 24. d4 {[%clk 0:15:29.1]} 24... a3 {[%clk 0:13:28]} 25. dxc5 {[%clk
0:15:32.6]} 25... axb2 {[%clk 0:13:31.8]} 26. Kc2 {[%clk 0:15:36.6]} 26... Rhc8
{[%clk 0:13:32.7]} 27. Rd1+ {[%clk 0:15:37.9]} 27... Ke7 {[%clk 0:13:28.4]} 28.
f5 {[%clk 0:15:34.9]} 28... Rxc5+ {[%clk 0:13:30.6]} 29. Kd3 {[%clk 0:15:36.7]}
29... b1=Q+ {[%clk 0:13:28.9]} 30. Rxb1 {[%clk 0:15:40.1]} 30... Rxb1 {[%clk
0:13:29]} 31. a4 {[%clk 0:15:42.5]} 31... Rd1+ {[%clk 0:13:31.2]} 32. Ke4 {[%clk
0:15:44.8]} 32... f6 {[%clk 0:13:33.1]} 33. Ke3 {[%clk 0:15:48.3]} 33... Re5+
{[%clk 0:13:36.6]} 34. Kf4 {[%clk 0:15:50.8]} 34... Rf1+ {[%clk 0:13:39.8]} 35.
Kg4 {[%clk 0:15:54.5]} 35... h5+ {[%clk 0:13:34.2]} 36. Kxh5 {[%clk 0:15:57.7]}
36... Rfxf5+ {[%clk 0:13:34.5]} 37. Kg6 {[%clk 0:15:59.8]} 37... Rg5+ {[%clk
0:13:35.8]} 38. Kh7 {[%clk 0:16:02.9]} 38... Kf7 {[%clk 0:13:36.8]} 39. Kh8
{[%clk 0:16:06.7]} 39... Rh5# {[%clk 0:13:40.6]} 0-1

[Event "Live Chess"]
[Site "Chess.com"]
[Date "2023.09.16"]
[Round "-"]
[White "DaviFuzatto"]
[Black "CauaLopes12"]
[Result "1-0"]
[WhiteElo "1378"]
[BlackElo "1310"]
[TimeControl "900+5"]
[EndTime "6:44:04 PDT"]
[Termination "DaviFuzatto venceu por xeque-mate"]

1. e4 {[%clk 0:15:03.6]} 1... e5 {[%clk 0:15:03.6]} 2. Nf3 {[%clk 0:15:03.4]}
2... Nf6 {[%clk 0:15:07.6]} 3. Nc3 {[%clk 0:15:06.4]} 3... Nc6 {[%clk
0:15:10.2]} 4. Bc4 {[%clk 0:15:09.9]} 4... Nxe4 {[%clk 0:15:12.7]} 5. Nxe4
{[%clk 0:15:12.6]} 5... d5 {[%clk 0:15:17.1]} 6. Bxd5 {[%clk 0:15:16.6]} 6...
Qxd5 {[%clk 0:15:20.2]} 7. Nc3 {[%clk 0:15:21.2]} 7... Qd8 {[%clk 0:15:19.2]} 8.
O-O {[%clk 0:15:20.5]} 8... Bd6 {[%clk 0:15:23.6]} 9. Re1 {[%clk 0:15:23.8]}
9... O-O {[%clk 0:15:26.3]} 10. d3 {[%clk 0:15:27.6]} 10... Bg4 {[%clk
0:15:28.8]} 11. h3 {[%clk 0:15:30.1]} 11... Bh5 {[%clk 0:15:32.4]} 12. Be3
{[%clk 0:15:32.3]} 12... Re8 {[%clk 0:15:34.5]} 13. Ne4 {[%clk 0:15:26.8]} 13...
Be7 {[%clk 0:15:22.5]} 14. Ng3 {[%clk 0:15:28.2]} 14... Bg6 {[%clk 0:15:21.2]}
15. Bd2 {[%clk 0:15:22.4]} 15... h6 {[%clk 0:15:13.5]} 16. Nxe5 {[%clk
0:14:26.5]} 16... Nxe5 {[%clk 0:15:13.1]} 17. Rxe5 {[%clk 0:14:29.8]} 17... Bd6
{[%clk 0:15:16.3]} 18. Rxe8+ {[%clk 0:14:26]} 18... Qxe8 {[%clk 0:15:18]} 19.
Qf3 {[%clk 0:14:30]} 19... b6 {[%clk 0:14:56.9]} 20. Re1 {[%clk 0:14:31.1]}
20... Qd8 {[%clk 0:14:55.3]} 21. Ne4 {[%clk 0:14:29.2]} 21... Be5 {[%clk
0:14:47]} 22. Bc3 {[%clk 0:14:24.3]} 22... Bxc3 {[%clk 0:14:28.6]} 23. Nxc3
{[%clk 0:14:26.2]} 23... Rc8 {[%clk 0:14:32.5]} 24. Qe3 {[%clk 0:14:09.4]} 24...
Qd6 {[%clk 0:14:12.4]} 25. Qe7 {[%clk 0:14:02.5]} 25... Qxe7 {[%clk 0:14:14]}
26. Rxe7 {[%clk 0:14:07.4]} 26... Kf8 {[%clk 0:14:18.1]} 27. Re3 {[%clk
0:13:59]} 27... Re8 {[%clk 0:14:18.5]} 28. Kh2 {[%clk 0:13:46.7]} 28... Rxe3
{[%clk 0:14:20.1]} 29. fxe3 {[%clk 0:13:51.6]} 29... Ke7 {[%clk 0:14:24]} 30.
Kg3 {[%clk 0:13:55.1]} 30... Ke6 {[%clk 0:14:27.6]} 31. Kf4 {[%clk 0:13:57.7]}
31... f6 {[%clk 0:14:24.1]} 32. g4 {[%clk 0:14:00.4]} 32... Kd6 {[%clk
0:14:19.4]} 33. Ne4+ {[%clk 0:14:00.4]} 33... Ke6 {[%clk 0:14:21.8]} 34. h4
{[%clk 0:14:01.3]} 34... Bxe4 {[%clk 0:14:21.1]} 35. Kxe4 {[%clk 0:14:04.9]}
35... c6 {[%clk 0:14:23.3]} 36. h5 {[%clk 0:14:07]} 36... Kf7 {[%clk 0:14:21.7]}
37. Kf5 {[%clk 0:14:09.9]} 37... Kg8 {[%clk 0:14:15.1]} 38. Ke6 {[%clk
0:14:07.1]} 38... Kf8 {[%clk 0:14:15.8]} 39. Kd6 {[%clk 0:14:10.2]} 39... Kf7
{[%clk 0:14:19.6]} 40. Kxc6 {[%clk 0:14:14.1]} 40... g6 {[%clk 0:14:24]} 41. d4
{[%clk 0:14:08.8]} 41... gxh5 {[%clk 0:14:26.2]} 42. gxh5 {[%clk 0:14:12.3]}
42... f5 {[%clk 0:14:30.5]} 43. d5 {[%clk 0:14:17]} 43... Kf6 {[%clk 0:14:31.5]}
44. d6 {[%clk 0:14:20.8]} 44... Kg5 {[%clk 0:14:36]} 45. d7 {[%clk 0:14:24.8]}
45... Kxh5 {[%clk 0:14:40.7]} 46. d8=Q {[%clk 0:14:29.1]} 46... Kg6 {[%clk
0:14:44.1]} 47. Qh4 {[%clk 0:14:32.6]} 47... h5 {[%clk 0:14:47.5]} 48. Kb7
{[%clk 0:14:35.4]} 48... Kh7 {[%clk 0:14:49.3]} 49. Kxa7 {[%clk 0:14:39.2]}
49... Kg7 {[%clk 0:14:53.5]} 50. Ka8 {[%clk 0:14:43.2]} 50... Kf7 {[%clk
0:14:56.9]} 51. Qxh5+ {[%clk 0:14:47.2]} 51... Ke7 {[%clk 0:15:01.6]} 52. Qxf5
{[%clk 0:14:51.4]} 52... Kd6 {[%clk 0:15:05]} 53. Kb7 {[%clk 0:14:54.4]} 53...
Ke7 {[%clk 0:15:08.2]} 54. Kxb6 {[%clk 0:14:58.1]} 54... Kd8 {[%clk 0:15:11.8]}
55. Qf7 {[%clk 0:15:01.8]} 55... Kc8 {[%clk 0:15:14.8]} 56. Qc7# {[%clk
0:15:06.7]} 1-0

[Event "Live Chess"]
[Site "Chess.com"]
[Date "2023.09.16"]
[Round "-"]
[White "lanofimdojogo"]
[Black "Rafael-2021"]
[Result "0-1"]
[WhiteElo "296"]
[BlackElo "1113"]
[TimeControl "900+5"]
[EndTime "6:47:00 PDT"]
[Termination "Rafael-2021 venceu por xeque-mate"]

1. g4 {[%clk 0:14:59.4]} 1... d5 {[%clk 0:15:01]} 2. Bg2 {[%clk 0:15:00.8]} 2...
Bxg4 {[%clk 0:15:01.4]} 3. f3 {[%clk 0:15:02.6]} 3... Bf5 {[%clk 0:15:02.9]} 4.
Nh3 {[%clk 0:15:02]} 4... Bxh3 {[%clk 0:15:03.9]} 5. Bxh3 {[%clk 0:15:02.7]}
5... e5 {[%clk 0:15:06]} 6. d4 {[%clk 0:15:03.2]} 6... Qh4+ {[%clk 0:14:57.4]}
7. Kf1 {[%clk 0:15:01.6]} 7... Qxh3+ {[%clk 0:15:00.7]} 8. Kf2 {[%clk
0:15:02.8]} 8... e4 {[%clk 0:14:55.7]} 9. Qd2 {[%clk 0:15:02.2]} 9... Nf6 {[%clk
0:14:50.6]} 10. Qb4 {[%clk 0:15:01]} 10... Bxb4 {[%clk 0:14:53]} 11. fxe4 {[%clk
0:14:49.3]} 11... Nxe4+ {[%clk 0:14:53.9]} 12. Kg1 {[%clk 0:14:48.6]} 12... Qg4+
{[%clk 0:14:55.8]} 13. Kf1 {[%clk 0:14:50.9]} 13... Nc6 {[%clk 0:14:51.7]} 14.
Rg1 {[%clk 0:14:47.1]} 14... Qh3+ {[%clk 0:14:54.2]} 15. Rg2 {[%clk 0:14:22.2]}
15... Nxd4 {[%clk 0:14:36.2]} 16. Bf4 {[%clk 0:14:10.7]} 16... Nxc2 {[%clk
0:14:26.2]} 17. Bxc7 {[%clk 0:14:05.4]} 17... Ne3+ {[%clk 0:14:24.8]} 18. Kg1
{[%clk 0:13:57.5]} 18... Qxg2# {[%clk 0:14:28]} 0-1

[Event "Live Chess"]
[Site "Chess.com"]
[Date "2023.09.16"]
[Round "-"]
[White "Sabadin21"]
[Black "lgomessc"]
[Result "0-1"]
[WhiteElo "902"]
[BlackElo "1145"]
[TimeControl "900+5"]
[EndTime "6:47:52 PDT"]
[Termination "lgomessc venceu por desistência"]

1. e4 {[%clk 0:15:02.6]} 1... e5 {[%clk 0:15:02.9]} 2. Nf3 {[%clk 0:15:05]} 2...
Nc6 {[%clk 0:15:05.6]} 3. Nc3 {[%clk 0:15:07.9]} 3... Bc5 {[%clk 0:15:06.9]} 4.
d3 {[%clk 0:15:04.3]} 4... d6 {[%clk 0:15:07.9]} 5. Be2 {[%clk 0:15:07.8]} 5...
Bg4 {[%clk 0:15:09.5]} 6. O-O {[%clk 0:15:11.4]} 6... Nf6 {[%clk 0:15:10.3]} 7.
Bg5 {[%clk 0:15:14.7]} 7... h6 {[%clk 0:15:08.4]} 8. Bd2 {[%clk 0:15:16.2]} 8...
O-O {[%clk 0:15:09.2]} 9. h3 {[%clk 0:15:18.1]} 9... Bh5 {[%clk 0:15:11.2]} 10.
Nh2 {[%clk 0:15:16.5]} 10... Bxe2 {[%clk 0:15:12.1]} 11. Qxe2 {[%clk 0:15:19.7]}
11... Nd4 {[%clk 0:15:14.3]} 12. Qd1 {[%clk 0:15:15.7]} 12... c6 {[%clk
0:15:00.4]} 13. Be3 {[%clk 0:15:13.8]} 13... d5 {[%clk 0:14:44.7]} 14. Bxd4
{[%clk 0:15:15.4]} 14... exd4 {[%clk 0:14:46.2]} 15. Ne2 {[%clk 0:15:08.9]}
15... dxe4 {[%clk 0:14:49]} 16. dxe4 {[%clk 0:15:11.4]} 16... Nxe4 {[%clk
0:14:51.8]} 17. c3 {[%clk 0:15:03.5]} 17... dxc3 {[%clk 0:14:50.5]} 18. Qxd8
{[%clk 0:15:07.6]} 18... Raxd8 {[%clk 0:14:45.1]} 19. Nxc3 {[%clk 0:15:11.5]}
19... Nxc3 {[%clk 0:14:43.3]} 20. bxc3 {[%clk 0:15:16]} 20... Rd3 {[%clk
0:14:44.1]} 21. Rfc1 {[%clk 0:15:07]} 21... Ba3 {[%clk 0:14:27.5]} 22. Rd1
{[%clk 0:15:03.7]} 22... Rxc3 {[%clk 0:14:25.5]} 23. Rd7 {[%clk 0:15:07.9]}
23... Rc1+ {[%clk 0:14:21.8]} 24. Rxc1 {[%clk 0:15:10.8]} 24... Bxc1 {[%clk
0:14:25.3]} 25. Rxb7 {[%clk 0:15:15.2]} 25... Rd8 {[%clk 0:14:23.2]} 26. Nf3
{[%clk 0:15:10.5]} 26... Bf4 {[%clk 0:14:22.7]} 27. Rb1 {[%clk 0:15:09.2]} 27...
c5 {[%clk 0:13:58]} 28. Ne1 {[%clk 0:14:48]} 28... c4 {[%clk 0:13:57.3]} 29. Nc2
{[%clk 0:14:50.5]} 29... c3 {[%clk 0:14:00]} 30. Kf1 {[%clk 0:14:45.6]} 30...
Rd2 {[%clk 0:13:57.7]} 31. Rc1 {[%clk 0:14:44.7]} 31... h5 {[%clk 0:13:38.4]}
32. Ke1 {[%clk 0:14:46.2]} 32... h4 {[%clk 0:13:34.5]} 33. g3 {[%clk 0:14:47.2]}
33... hxg3 {[%clk 0:13:36.7]} 34. fxg3 {[%clk 0:14:51.8]} 34... Bxg3+ {[%clk
0:13:36.4]} 35. Kf1 {[%clk 0:14:50.5]} 35... Rh2 {[%clk 0:13:01.4]} 36. Ne1
{[%clk 0:14:48.3]} 36... Bxe1 {[%clk 0:12:57.5]} 37. Kxe1 {[%clk 0:14:50.5]}
37... Rh1+ {[%clk 0:12:59.3]} 38. Ke2 {[%clk 0:14:52]} 38... Rxc1 {[%clk
0:13:02.6]} 0-1

[Event "Live Chess"]
[Site "Chess.com"]
[Date "2023.09.16"]
[Round "-"]
[White "asafefausto"]
[Black "AnaHelenaAulicino"]
[Result "1-0"]
[WhiteElo "680"]
[BlackElo "605"]
[TimeControl "900+5"]
[EndTime "6:47:53 PDT"]
[Termination "asafefausto venceu por xeque-mate"]

1. d4 {[%clk 0:14:57.7]} 1... d5 {[%clk 0:15:02.8]} 2. Nc3 {[%clk 0:14:57.3]}
2... e6 {[%clk 0:15:02]} 3. e4 {[%clk 0:14:58.7]} 3... dxe4 {[%clk 0:15:00.2]}
4. Nxe4 {[%clk 0:15:00.4]} 4... Nc6 {[%clk 0:14:54.8]} 5. Bc4 {[%clk 0:14:52.9]}
5... Bd6 {[%clk 0:14:43.6]} 6. Nxd6+ {[%clk 0:14:43.9]} 6... Qxd6 {[%clk
0:14:44]} 7. d5 {[%clk 0:14:43.2]} 7... Ne5 {[%clk 0:14:38]} 8. Bb5+ {[%clk
0:14:40]} 8... c6 {[%clk 0:14:38.9]} 9. dxc6 {[%clk 0:14:37.8]} 9... bxc6 {[%clk
0:14:40.7]} 10. Qxd6 {[%clk 0:14:38.7]} 10... Ng4 {[%clk 0:14:31.9]} 11. Bxc6+
{[%clk 0:14:38.3]} 11... Bd7 {[%clk 0:14:32]} 12. Qxd7+ {[%clk 0:14:31.9]} 12...
Kf8 {[%clk 0:14:35.4]} 13. Bxa8 {[%clk 0:14:24]} 13... N8f6 {[%clk 0:14:25.7]}
14. Qd8+ {[%clk 0:14:23.7]} 14... Ne8 {[%clk 0:14:29.2]} 15. Bc6 {[%clk
0:14:20.4]} 15... g6 {[%clk 0:14:20.7]} 16. Qxe8+ {[%clk 0:14:21.8]} 16... Kg7
{[%clk 0:14:23.6]} 17. Qe7 {[%clk 0:14:01.8]} 17... Ne5 {[%clk 0:14:14.6]} 18.
Qg5 {[%clk 0:13:45.7]} 18... Nxc6 {[%clk 0:14:15.8]} 19. Qh6+ {[%clk 0:13:48.4]}
19... Kf6 {[%clk 0:14:11.8]} 20. Bg5+ {[%clk 0:13:47]} 20... Kf5 {[%clk
0:14:12.4]} 21. Nf3 {[%clk 0:13:32.8]} 21... Rb8 {[%clk 0:14:03.7]} 22. Nh4+
{[%clk 0:13:29.6]} 22... Kg4 {[%clk 0:14:03.3]} 23. f3# {[%clk 0:13:25.4]} 1-0

[Event "Live Chess"]
[Site "Chess.com"]
[Date "2023.09.16"]
[Round "-"]
[White "isanamie12"]
[Black "Corveloni_Ma"]
[Result "0-1"]
[WhiteElo "806"]
[BlackElo "1383"]
[TimeControl "900+5"]
[EndTime "6:48:28 PDT"]
[Termination "Corveloni_Ma venceu por xeque-mate"]

1. d4 {[%clk 0:15:00.4]} 1... Nf6 {[%clk 0:15:02.8]} 2. c4 {[%clk 0:15:04.1]}
2... e6 {[%clk 0:15:05.7]} 3. Nf3 {[%clk 0:15:07.3]} 3... b6 {[%clk 0:15:08.8]}
4. g3 {[%clk 0:15:08.7]} 4... Bb7 {[%clk 0:15:12.5]} 5. Bg2 {[%clk 0:15:13.3]}
5... Be7 {[%clk 0:15:15.5]} 6. O-O {[%clk 0:15:16.6]} 6... O-O {[%clk 0:15:19]}
7. Nc3 {[%clk 0:15:21.1]} 7... d5 {[%clk 0:15:18.7]} 8. Bg5 {[%clk 0:15:11.1]}
8... c5 {[%clk 0:15:19.3]} 9. e3 {[%clk 0:15:09.2]} 9... Nc6 {[%clk 0:15:00.2]}
10. Ne5 {[%clk 0:14:45.3]} 10... Qc7 {[%clk 0:14:35.4]} 11. Re1 {[%clk 0:14:23]}
11... Rad8 {[%clk 0:14:01.1]} 12. Nxc6 {[%clk 0:14:16]} 12... Bxc6 {[%clk
0:13:57.1]} 13. Qf3 {[%clk 0:13:51.9]} 13... Ne4 {[%clk 0:13:19]} 14. Bxe7
{[%clk 0:13:11.3]} 14... Qxe7 {[%clk 0:13:16.2]} 15. Qg4 {[%clk 0:12:54.7]}
15... f5 {[%clk 0:12:31.1]} 16. Qf4 {[%clk 0:12:32.9]} 16... dxc4 {[%clk
0:11:58.5]} 17. Nxe4 {[%clk 0:12:04.7]} 17... fxe4 {[%clk 0:11:56]} 18. Qh4
{[%clk 0:12:04.6]} 18... Qxh4 {[%clk 0:11:55.5]} 19. gxh4 {[%clk 0:12:07.6]}
19... cxd4 {[%clk 0:11:57.1]} 20. exd4 {[%clk 0:12:08.4]} 20... Rxd4 {[%clk
0:11:59.8]} 21. Bh3 {[%clk 0:12:06.7]} 21... Rf6 {[%clk 0:11:52.4]} 22. Rad1
{[%clk 0:11:50.3]} 22... e5 {[%clk 0:11:16.2]} 23. Rxd4 {[%clk 0:11:05.6]} 23...
exd4 {[%clk 0:11:19.2]} 24. Rd1 {[%clk 0:11:09.2]} 24... d3 {[%clk 0:11:21.7]}
25. Rd2 {[%clk 0:11:09.5]} 25... b5 {[%clk 0:11:21.6]} 26. Kf1 {[%clk
0:10:37.5]} 26... e3 {[%clk 0:11:13]} 27. Be6+ {[%clk 0:10:11.2]} 27... Rxe6
{[%clk 0:11:08.6]} 28. fxe3 {[%clk 0:10:14.8]} 28... Rxe3 {[%clk 0:11:10.7]} 29.
Kf2 {[%clk 0:10:11.8]} 29... Rh3 {[%clk 0:11:02.5]} 30. b3 {[%clk 0:10:08.6]}
30... Rxh2+ {[%clk 0:11:01.6]} 31. Ke3 {[%clk 0:10:11.6]} 31... Rxd2 {[%clk
0:11:00.6]} 32. Kxd2 {[%clk 0:10:15.4]} 32... Kf7 {[%clk 0:10:52.6]} 33. Kc3
{[%clk 0:10:13.2]} 33... b4+ {[%clk 0:10:44.7]} 34. Kd2 {[%clk 0:10:09.1]} 34...
Bd5 {[%clk 0:10:36.7]} 35. Ke3 {[%clk 0:10:00.8]} 35... Kf6 {[%clk 0:10:23.3]}
36. Kd2 {[%clk 0:09:58.3]} 36... g5 {[%clk 0:10:25.7]} 37. bxc4 {[%clk
0:09:48.4]} 37... Bxc4 {[%clk 0:10:27.8]} 38. hxg5+ {[%clk 0:09:34.6]} 38...
Kxg5 {[%clk 0:10:30.5]} 39. Ke3 {[%clk 0:09:34.7]} 39... h5 {[%clk 0:10:33.6]}
40. Kd2 {[%clk 0:09:38.7]} 40... h4 {[%clk 0:10:36.6]} 41. a3 {[%clk 0:09:41.3]}
41... h3 {[%clk 0:10:38]} 42. a4 {[%clk 0:09:36.3]} 42... h2 {[%clk 0:10:40.7]}
43. a5 {[%clk 0:09:37.4]} 43... h1=Q {[%clk 0:10:38.7]} 44. a6 {[%clk
0:09:41.7]} 44... Qg2+ {[%clk 0:10:38]} 45. Ke3 {[%clk 0:09:33.8]} 45... Qe2+
{[%clk 0:10:37]} 46. Kd4 {[%clk 0:09:36.9]} 46... Bxa6 {[%clk 0:10:29.1]} 47.
Kc5 {[%clk 0:09:37.5]} 47... Qe5+ {[%clk 0:10:27.7]} 48. Kxb4 {[%clk 0:09:38]}
48... Qb5+ {[%clk 0:10:31.6]} 49. Kc3 {[%clk 0:09:41]} 49... Qc4+ {[%clk
0:10:30.8]} 50. Kd2 {[%clk 0:09:40.1]} 50... Qc2+ {[%clk 0:10:33.8]} 51. Ke3
{[%clk 0:09:38.6]} 51... d2 {[%clk 0:10:30.8]} 52. Kf2 {[%clk 0:09:30.5]} 52...
d1=Q+ {[%clk 0:10:33.2]} 53. Ke3 {[%clk 0:09:34.2]} 53... Qce2# {[%clk
0:10:36.2]} 0-1

[Event "Live Chess"]
[Site "Chess.com"]
[Date "2023.09.16"]
[Round "-"]
[White "Corveloni_Ma"]
[Black "Sabadin21"]
[Result "1-0"]
[WhiteElo "1384"]
[BlackElo "887"]
[TimeControl "900+5"]
[EndTime "6:50:53 PDT"]
[Termination "Corveloni_Ma venceu por desistência"]

1. d4 {[%clk 0:15:02.7]} 1... f5 {[%clk 0:15:01.9]} 2. Nf3 {[%clk 0:15:05]} 2...
Nc6 {[%clk 0:15:04.4]} 3. c4 {[%clk 0:15:08.8]} 3... Nf6 {[%clk 0:15:08.2]} 4.
g3 {[%clk 0:15:12.9]} 4... d5 {[%clk 0:15:11.9]} 5. Bg2 {[%clk 0:15:16.2]} 5...
e6 {[%clk 0:15:15.8]} 6. O-O {[%clk 0:15:19.1]} 6... Bd6 {[%clk 0:15:19.4]} 7.
Nbd2 {[%clk 0:15:18.8]} 7... O-O {[%clk 0:15:23.6]} 8. Qc2 {[%clk 0:15:22.7]}
8... dxc4 {[%clk 0:15:27.9]} 9. Nxc4 {[%clk 0:15:24.6]} 9... Bd7 {[%clk
0:15:32.4]} 10. b3 {[%clk 0:15:21]} 10... b6 {[%clk 0:15:35.4]} 11. Bb2 {[%clk
0:15:24.1]} 11... Qe7 {[%clk 0:15:28.6]} 12. Nfe5 {[%clk 0:15:12.7]} 12... Nxe5
{[%clk 0:15:30.9]} 13. Bxa8 {[%clk 0:15:12.6]} 13... Rxa8 {[%clk 0:15:30.9]} 14.
dxe5 {[%clk 0:15:16.7]} 14... Bc5 {[%clk 0:15:28.2]} 15. exf6 {[%clk 0:15:18.9]}
15... Qxf6 {[%clk 0:15:32.7]} 16. Bxf6 {[%clk 0:15:21.9]} 16... gxf6 {[%clk
0:15:36.1]} 1-0

[Event "Live Chess"]
[Site "Chess.com"]
[Date "2023.09.16"]
[Round "-"]
[White "Ruanfelipe2014"]
[Black "guilhermemazza"]
[Result "1-0"]
[WhiteElo "974"]
[BlackElo "485"]
[TimeControl "900+5"]
[EndTime "6:54:49 PDT"]
[Termination "Ruanfelipe2014 venceu por xeque-mate"]

1. e4 {[%clk 0:15:00.8]} 1... e5 {[%clk 0:15:03.6]} 2. Nf3 {[%clk 0:15:02.1]}
2... Nc6 {[%clk 0:15:06.2]} 3. Bc4 {[%clk 0:15:03.1]} 3... Nf6 {[%clk
0:15:08.2]} 4. d3 {[%clk 0:15:03.5]} 4... Bc5 {[%clk 0:15:07.1]} 5. Bg5 {[%clk
0:15:02.7]} 5... h6 {[%clk 0:15:09.5]} 6. Bh4 {[%clk 0:15:02.9]} 6... g5 {[%clk
0:15:13.1]} 7. Bg3 {[%clk 0:15:04.7]} 7... d6 {[%clk 0:15:12.2]} 8. h4 {[%clk
0:14:59.5]} 8... gxh4 {[%clk 0:15:12.2]} 9. Rxh4 {[%clk 0:14:58.8]} 9... Bg4
{[%clk 0:15:10.8]} 10. Nc3 {[%clk 0:14:48]} 10... Bxf3 {[%clk 0:15:11.5]} 11.
Qxf3 {[%clk 0:14:46.2]} 11... Nb4 {[%clk 0:15:09]} 12. Bb3 {[%clk 0:14:23]}
12... Qe7 {[%clk 0:14:55]} 13. a3 {[%clk 0:14:10.8]} 13... Nxc2+ {[%clk
0:14:55.1]} 14. Bxc2 {[%clk 0:14:08.7]} 14... O-O-O {[%clk 0:14:54.9]} 15. b4
{[%clk 0:13:59.7]} 15... Bd4 {[%clk 0:14:56.1]} 16. a4 {[%clk 0:13:38.7]} 16...
Bxc3+ {[%clk 0:14:59]} 17. Ke2 {[%clk 0:13:36.4]} 17... Bxa1 {[%clk 0:15:02.8]}
18. Rh1 {[%clk 0:13:37.1]} 18... c5 {[%clk 0:14:56.6]} 19. Rxa1 {[%clk
0:13:39.6]} 19... cxb4 {[%clk 0:14:59.5]} 20. Rc1 {[%clk 0:13:40.8]} 20... Kb8
{[%clk 0:15:02]} 21. d4 {[%clk 0:13:37.8]} 21... Nh5 {[%clk 0:15:04.7]} 22. Qxh5
{[%clk 0:13:29.1]} 22... Rc8 {[%clk 0:15:04.4]} 23. dxe5 {[%clk 0:13:29.1]}
23... dxe5 {[%clk 0:15:07.3]} 24. Bxe5+ {[%clk 0:13:29.4]} 24... Ka8 {[%clk
0:15:07]} 25. Bxh8 {[%clk 0:13:31.5]} 25... Rxh8 {[%clk 0:15:09.5]} 26. Bd3
{[%clk 0:13:27]} 26... Rg8 {[%clk 0:15:11.7]} 27. Qxh6 {[%clk 0:13:20.3]} 27...
Qf8 {[%clk 0:15:13.7]} 28. Qh3 {[%clk 0:13:01.8]} 28... b3 {[%clk 0:15:16.9]}
29. Rb1 {[%clk 0:12:34]} 29... Qa3 {[%clk 0:15:13.7]} 30. Qh7 {[%clk 0:12:30.6]}
30... Qa2+ {[%clk 0:15:10.3]} 31. Ke3 {[%clk 0:12:27.9]} 31... Rf8 {[%clk
0:15:07.8]} 32. Qf5 {[%clk 0:12:09.1]} 32... Qxb1 {[%clk 0:15:10.2]} 33. Bxb1
{[%clk 0:12:10.3]} 33... b2 {[%clk 0:15:14.1]} 34. Qe5 {[%clk 0:12:03.5]} 34...
Rc8 {[%clk 0:15:16.2]} 35. Qxb2 {[%clk 0:11:59.7]} 35... a5 {[%clk 0:15:18.8]}
36. e5 {[%clk 0:11:57.7]} 36... b5 {[%clk 0:15:19.5]} 37. Qxb5 {[%clk
0:11:57.3]} 37... Rb8 {[%clk 0:15:17.7]} 38. Qxa5+ {[%clk 0:11:59.4]} 38... Kb7
{[%clk 0:15:20.4]} 39. Be4+ {[%clk 0:11:59.9]} 39... Kc8 {[%clk 0:15:23.5]} 40.
Bf5+ {[%clk 0:11:51.7]} 40... Kb7 {[%clk 0:15:24.7]} 41. Qb5+ {[%clk 0:11:51.3]}
41... Kc7 {[%clk 0:15:24.7]} 42. Qd7+ {[%clk 0:11:48]} 42... Kb6 {[%clk
0:15:27.6]} 43. a5+ {[%clk 0:11:46.8]} 43... Kxa5 {[%clk 0:15:31.4]} 44. Qa7+
{[%clk 0:11:46.8]} 44... Kb5 {[%clk 0:15:34]} 45. Qxb8+ {[%clk 0:11:49.7]} 45...
Kc5 {[%clk 0:15:37.6]} 46. Qd8 {[%clk 0:11:51.3]} 46... Kc4 {[%clk 0:15:41.2]}
47. Bd3+ {[%clk 0:11:52]} 47... Kc3 {[%clk 0:15:44.3]} 48. Qc7+ {[%clk
0:11:52.3]} 48... Kb2 {[%clk 0:15:45.8]} 49. Qc2+ {[%clk 0:11:53.4]} 49... Ka3
{[%clk 0:15:42.6]} 50. Qb1 {[%clk 0:11:54.3]} 50... Ka4 {[%clk 0:15:45.9]} 51.
Qb6 {[%clk 0:11:56.6]} 51... Ka3 {[%clk 0:15:49.6]} 52. Qb5 {[%clk 0:11:58.1]}
52... Ka2 {[%clk 0:15:52.8]} 53. Qb4 {[%clk 0:12:00.3]} 53... Ka1 {[%clk
0:15:56.1]} 54. Qb1# {[%clk 0:12:03.1]} 1-0